[Event "*** Titled Tuesday Blitz"]
[Site "Chess.com"]
[Date "2020.04.14"]
[Round "5"]
[White "JelenaKarleusa-SO-18"]
[Black "kagg1125"]
[Result "1-0"]
[WhiteElo "2709"]
[BlackElo "2518"]
[TimeControl "180+1"]
[EndTime "10:52:28 PDT"]
[Termination "JelenaKarleusa-SO-18 won by resignation"]

1. e4 {[%clk 0:03:00.9]} 1... e5 {[%clk 0:02:58.8]} 2. Nf3 {[%clk 0:03:00.7]}
2... Nc6 {[%clk 0:02:58.5]} 3. Bc4 {[%clk 0:03:00.1]} 3... Nf6 {[%clk
0:02:58.8]} 4. d3 {[%clk 0:02:59.2]} 4... Be7 {[%clk 0:02:58.8]} 5. a4 {[%clk
0:02:58.3]} 5... O-O {[%clk 0:02:58.2]} 6. O-O {[%clk 0:02:58.9]} 6... d6 {[%clk
0:02:57.9]} 7. c3 {[%clk 0:02:58.4]} 7... Kh8 {[%clk 0:02:57.7]} 8. a5 {[%clk
0:02:58.6]} 8... a6 {[%clk 0:02:57.6]} 9. Re1 {[%clk 0:02:58.3]} 9... Ng8 {[%clk
0:02:57.7]} 10. d4 {[%clk 0:02:57.7]} 10... f5 {[%clk 0:02:55.7]} 11. dxe5
{[%clk 0:02:41.4]} 11... fxe4 {[%clk 0:02:55.6]} 12. Rxe4 {[%clk 0:02:34.1]}
12... Rxf3 {[%clk 0:02:54.3]} 13. gxf3 {[%clk 0:02:20.7]} 13... Nxe5 {[%clk
0:02:53.7]} 14. Bf1 {[%clk 0:02:10.3]} 14... Nf6 {[%clk 0:02:50.3]} 15. Rd4
{[%clk 0:02:06.5]} 15... Qe8 {[%clk 0:02:33.3]} 16. Bf4 {[%clk 0:01:57.1]} 16...
Qg6+ {[%clk 0:02:05]} 17. Kh1 {[%clk 0:01:54.5]} 17... Nc6 {[%clk 0:01:56.5]}
18. Rda4 {[%clk 0:01:54.1]} 18... Bf5 {[%clk 0:01:52.2]} 19. Na3 {[%clk
0:01:47]} 19... Rf8 {[%clk 0:01:48]} 20. Bg3 {[%clk 0:01:46.5]} 20... Nd7 {[%clk
0:01:40.8]} 21. b4 {[%clk 0:01:00.3]} 21... Bf6 {[%clk 0:01:29.5]} 22. Rc1
{[%clk 0:00:59]} 22... Nce5 {[%clk 0:01:25.1]} 23. b5 {[%clk 0:00:54.8]} 23...
Nc5 {[%clk 0:01:20.3]} 24. Rd4 {[%clk 0:00:40.9]} 24... Ned3 {[%clk 0:01:16.7]}
25. Ra1 {[%clk 0:00:26.1]} 25... Bxd4 {[%clk 0:01:12]} 26. cxd4 {[%clk 0:00:27]}
26... Ne6 {[%clk 0:01:11.7]} 27. bxa6 {[%clk 0:00:26.6]} 27... bxa6 {[%clk
0:01:11.4]} 28. Nc4 {[%clk 0:00:22.5]} 28... Nef4 {[%clk 0:00:38.2]} 29. Ne3
{[%clk 0:00:21.4]} 29... Bh3 {[%clk 0:00:30.5]} 30. Ra3 {[%clk 0:00:11.5]} 30...
Bxf1 {[%clk 0:00:26.5]} 31. Qxf1 {[%clk 0:00:12.4]} 31... Nb4 {[%clk 0:00:26.9]}
32. Rc3 {[%clk 0:00:11.7]} 32... Nbd5 {[%clk 0:00:26.1]} 33. Rc6 {[%clk
0:00:10.9]} 33... h5 {[%clk 0:00:20.8]} 34. Rxa6 {[%clk 0:00:09.1]} 34... h4
{[%clk 0:00:20.9]} 35. Bxf4 {[%clk 0:00:09.6]} 35... Nxf4 {[%clk 0:00:21.1]} 36.
Rc6 {[%clk 0:00:08.2]} 36... Qh5 {[%clk 0:00:20.9]} 37. Ng4 {[%clk 0:00:05.7]}
37... Qxa5 {[%clk 0:00:20.8]} 38. Rc1 {[%clk 0:00:04]} 38... Qd5 {[%clk
0:00:19.9]} 39. Qd1 {[%clk 0:00:02.8]} 39... Ng6 {[%clk 0:00:18.7]} 40. Ne3
{[%clk 0:00:02]} 40... Qxf3+ {[%clk 0:00:18]} 41. Qxf3 {[%clk 0:00:02.5]} 41...
Rxf3 {[%clk 0:00:18.9]} 42. Rxc7 {[%clk 0:00:02.5]} 42... Rxf2 {[%clk
0:00:18.5]} 43. Rd7 {[%clk 0:00:03.2]} 43... Re2 {[%clk 0:00:18.4]} 44. Nf5
{[%clk 0:00:02.7]} 44... Nf4 {[%clk 0:00:18.8]} 45. Kg1 {[%clk 0:00:03.3]} 45...
Nh3+ {[%clk 0:00:15.1]} 46. Kh1 {[%clk 0:00:02]} 46... Rf2 {[%clk 0:00:11.4]}
47. Nxh4 {[%clk 0:00:01.3]} 47... Rf4 {[%clk 0:00:11.2]} 48. Ng6+ {[%clk
0:00:01.5]} 48... Kh7 {[%clk 0:00:10.1]} 49. Nxf4 {[%clk 0:00:02.4]} 49... Nxf4
{[%clk 0:00:11]} 50. Rxd6 {[%clk 0:00:03.3]} 50... Nd3 {[%clk 0:00:10.9]} 51.
Rd8 {[%clk 0:00:03.2]} 51... Nf2+ {[%clk 0:00:11.2]} 52. Kg2 {[%clk 0:00:03.3]}
52... Ne4 {[%clk 0:00:12.1]} 53. Re8 {[%clk 0:00:03.8]} 53... Nf6 {[%clk
0:00:12.3]} 54. Re6 {[%clk 0:00:03.9]} 54... Kg6 {[%clk 0:00:12.8]} 55. Kf3
{[%clk 0:00:04.3]} 55... Kf5 {[%clk 0:00:13.3]} 56. Re5+ {[%clk 0:00:04.9]}
56... Kg6 {[%clk 0:00:13.4]} 57. Kf4 {[%clk 0:00:05.5]} 57... Nd7 {[%clk
0:00:13.1]} 58. Rb5 {[%clk 0:00:04.6]} 58... Kf7 {[%clk 0:00:13.1]} 59. Kf5
{[%clk 0:00:04.5]} 59... Nf8 {[%clk 0:00:13.2]} 60. Ke5 {[%clk 0:00:04.6]} 60...
Kg8 {[%clk 0:00:14.1]} 61. Rb8 {[%clk 0:00:04.5]} 61... Kf7 {[%clk 0:00:14.4]}
62. Rxf8+ {[%clk 0:00:05.1]} 62... Kxf8 {[%clk 0:00:15.3]} 63. Kf5 {[%clk
0:00:05.4]} 63... Ke7 {[%clk 0:00:16.2]} 64. h4 {[%clk 0:00:06.1]} 64... Kd6
{[%clk 0:00:16.6]} 65. Kg6 {[%clk 0:00:06.7]} 65... Kd5 {[%clk 0:00:17.5]} 66.
h5 {[%clk 0:00:07.6]} 66... Kxd4 {[%clk 0:00:18.4]} 67. Kxg7 {[%clk 0:00:08.5]}
1-0

[Event "*** Titled Tuesday Blitz"]
[Site "Chess.com"]
[Date "2020.04.14"]
[Round "5"]
[White "MarcoRiehle"]
[Black "wild_cat99"]
[Result "1-0"]
[WhiteElo "2725"]
[BlackElo "2552"]
[TimeControl "180+1"]
[EndTime "10:52:35 PDT"]
[Termination "MarcoRiehle won on time"]

1. e4 {[%clk 0:03:00.9]} 1... c5 {[%clk 0:02:59.8]} 2. Nf3 {[%clk 0:02:58.8]}
2... d6 {[%clk 0:03:00.2]} 3. d4 {[%clk 0:02:58.3]} 3... cxd4 {[%clk 0:03:01.1]}
4. Nxd4 {[%clk 0:02:58.6]} 4... Nf6 {[%clk 0:03:01.5]} 5. f3 {[%clk 0:02:57.8]}
5... e5 {[%clk 0:02:58.9]} 6. Nb3 {[%clk 0:02:56.6]} 6... Be6 {[%clk 0:02:58.7]}
7. c4 {[%clk 0:02:55.9]} 7... a5 {[%clk 0:02:58.6]} 8. Be3 {[%clk 0:02:54]} 8...
Nbd7 {[%clk 0:02:54.4]} 9. Be2 {[%clk 0:02:50.8]} 9... a4 {[%clk 0:02:53.5]} 10.
N3d2 {[%clk 0:02:50.2]} 10... Qa5 {[%clk 0:02:47.4]} 11. O-O {[%clk 0:02:48.6]}
11... Be7 {[%clk 0:02:47.9]} 12. Na3 {[%clk 0:02:47.9]} 12... Bd8 {[%clk
0:02:47.2]} 13. Kh1 {[%clk 0:02:45.9]} 13... Bb6 {[%clk 0:02:47]} 14. c5 {[%clk
0:02:45.8]} 14... Bxc5 {[%clk 0:02:38.1]} 15. Ndc4 {[%clk 0:02:45.3]} 15... Qa6
{[%clk 0:02:26.5]} 16. Nb5 {[%clk 0:02:22.8]} 16... O-O {[%clk 0:02:08]} 17. Nc7
{[%clk 0:02:20.9]} 17... Qc6 {[%clk 0:02:08.2]} 18. Nxa8 {[%clk 0:02:20.3]}
18... Rxa8 {[%clk 0:02:09.1]} 19. Rc1 {[%clk 0:02:20.6]} 19... b5 {[%clk
0:01:46]} 20. Nxd6 {[%clk 0:02:19.9]} 20... Qb6 {[%clk 0:01:36]} 21. Bxc5 {[%clk
0:02:10.9]} 21... Nxc5 {[%clk 0:01:36.9]} 22. Nxb5 {[%clk 0:02:09.8]} 22... Bxa2
{[%clk 0:01:25.6]} 23. Qd6 {[%clk 0:02:07]} 23... Qxd6 {[%clk 0:01:23.6]} 24.
Nxd6 {[%clk 0:02:07.9]} 24... Ne6 {[%clk 0:01:23]} 25. Rc8+ {[%clk 0:02:01.7]}
25... Rxc8 {[%clk 0:01:22.6]} 26. Nxc8 {[%clk 0:02:02.6]} 26... Nd4 {[%clk
0:01:21.6]} 27. Bd1 {[%clk 0:01:54.6]} 27... Be6 {[%clk 0:01:21.4]} 28. Nb6
{[%clk 0:01:52.1]} 28... h5 {[%clk 0:01:18.5]} 29. Bxa4 {[%clk 0:01:50.7]} 29...
g5 {[%clk 0:01:15.2]} 30. b4 {[%clk 0:01:43.8]} 30... h4 {[%clk 0:01:04.3]} 31.
b5 {[%clk 0:01:35.8]} 31... h3 {[%clk 0:01:03.8]} 32. g3 {[%clk 0:01:25.4]}
32... g4 {[%clk 0:01:03.3]} 33. Na8 {[%clk 0:01:09.3]} 33... gxf3 {[%clk
0:00:59.5]} 34. Nc7 {[%clk 0:01:06.2]} 34... Bc4 {[%clk 0:00:56.4]} 35. Rf2
{[%clk 0:00:48.4]} 35... Ng4 {[%clk 0:00:46]} 36. Kg1 {[%clk 0:00:42.9]} 36...
Nxf2 {[%clk 0:00:41.4]} 37. Kxf2 {[%clk 0:00:42.5]} 37... Bd3 {[%clk 0:00:41.7]}
38. Nd5 {[%clk 0:00:40]} 38... Nxb5 {[%clk 0:00:38.5]} 39. Kxf3 {[%clk
0:00:29.6]} 39... Nd6 {[%clk 0:00:37]} 40. Nc3 {[%clk 0:00:24.8]} 40... Kg7
{[%clk 0:00:34.7]} 41. Bd7 {[%clk 0:00:24]} 41... Bf1 {[%clk 0:00:29.3]} 42. Bf5
{[%clk 0:00:13.8]} 42... Bg2+ {[%clk 0:00:28.9]} 43. Kg4 {[%clk 0:00:13.1]}
43... Nc4 {[%clk 0:00:23.6]} 44. Kh4 {[%clk 0:00:08.6]} 44... Nd2 {[%clk
0:00:23.8]} 45. g4 {[%clk 0:00:07.2]} 45... Nf3+ {[%clk 0:00:22.8]} 46. Kg3
{[%clk 0:00:07.6]} 46... Ng5 {[%clk 0:00:22.6]} 47. Kf2 {[%clk 0:00:05.3]} 47...
Nf3 {[%clk 0:00:18.9]} 48. Kg3 {[%clk 0:00:05.6]} 48... Ng5 {[%clk 0:00:19]} 49.
Ne2 {[%clk 0:00:05.7]} 49... Nf3 {[%clk 0:00:19]} 50. Bc8 {[%clk 0:00:03.2]}
50... Ng5 {[%clk 0:00:14.8]} 51. Bb7 {[%clk 0:00:03.3]} 51... Nxe4+ {[%clk
0:00:10.1]} 52. Bxe4 {[%clk 0:00:02.4]} 52... Bxe4 {[%clk 0:00:11]} 53. Kxh3
{[%clk 0:00:03.3]} 53... Bf3 {[%clk 0:00:11.2]} 54. Ng1 {[%clk 0:00:02.4]} 54...
Bd1 {[%clk 0:00:11.3]} 55. Kg3 {[%clk 0:00:02.8]} 55... e4 {[%clk 0:00:11.4]}
56. Kf4 {[%clk 0:00:02.4]} 56... Bc2 {[%clk 0:00:11.6]} 57. Nh3 {[%clk
0:00:02.5]} 57... f6 {[%clk 0:00:09]} 58. Nf2 {[%clk 0:00:02.7]} 58... Kg6
{[%clk 0:00:08.3]} 59. Nxe4 {[%clk 0:00:02.8]} 59... Bd1 {[%clk 0:00:05.1]} 60.
h3 {[%clk 0:00:02.1]} 60... Be2 {[%clk 0:00:04.8]} 61. Ng3 {[%clk 0:00:03]}
61... Bd1 {[%clk 0:00:04.6]} 62. h4 {[%clk 0:00:03.3]} 62... Bc2 {[%clk
0:00:04]} 63. h5+ {[%clk 0:00:03.7]} 63... Kh6 {[%clk 0:00:04.3]} 64. Ne4 {[%clk
0:00:04]} 1-0

[Event "*** Titled Tuesday Blitz"]
[Site "Chess.com"]
[Date "2020.04.14"]
[Round "5"]
[White "tylityli"]
[Black "karinachess1"]
[Result "1/2-1/2"]
[WhiteElo "2152"]
[BlackElo "2487"]
[TimeControl "180+1"]
[EndTime "10:52:36 PDT"]
[Termination "Game drawn - insufficient material"]

1. e4 {[%clk 0:02:51]} 1... c5 {[%clk 0:02:59.6]} 2. Nf3 {[%clk 0:02:42.8]} 2...
a6 {[%clk 0:02:59.5]} 3. d4 {[%clk 0:02:43.2]} 3... cxd4 {[%clk 0:02:59.4]} 4.
Nxd4 {[%clk 0:02:44.1]} 4... Nf6 {[%clk 0:02:55.3]} 5. Nc3 {[%clk 0:02:43.8]}
5... e5 {[%clk 0:02:55.3]} 6. Nb3 {[%clk 0:02:41.5]} 6... Bb4 {[%clk 0:02:54]}
7. Bd3 {[%clk 0:02:38.9]} 7... d5 {[%clk 0:02:28]} 8. exd5 {[%clk 0:02:37.6]}
8... Nxd5 {[%clk 0:02:27.6]} 9. Bd2 {[%clk 0:02:37.9]} 9... Nxc3 {[%clk
0:02:17.3]} 10. bxc3 {[%clk 0:02:32.9]} 10... Be7 {[%clk 0:02:17]} 11. O-O
{[%clk 0:02:31.1]} 11... Nc6 {[%clk 0:02:12.5]} 12. Qe2 {[%clk 0:02:28]} 12...
O-O {[%clk 0:02:10.4]} 13. a4 {[%clk 0:02:23.6]} 13... f5 {[%clk 0:02:04.7]} 14.
Bc4+ {[%clk 0:02:20.4]} 14... Kh8 {[%clk 0:02:04.1]} 15. Rfd1 {[%clk 0:02:20.1]}
15... Qe8 {[%clk 0:01:56.8]} 16. f3 {[%clk 0:02:14.5]} 16... Qg6 {[%clk
0:01:53.2]} 17. Be3 {[%clk 0:02:12.6]} 17... f4 {[%clk 0:01:00.5]} 18. Bc5
{[%clk 0:02:07.3]} 18... Re8 {[%clk 0:00:47]} 19. Bd3 {[%clk 0:02:04.4]} 19...
Bf5 {[%clk 0:00:46.5]} 20. Rd2 {[%clk 0:01:49.8]} 20... Rac8 {[%clk 0:00:41.7]}
21. Rad1 {[%clk 0:01:46.4]} 21... Bg5 {[%clk 0:00:34.4]} 22. Be4 {[%clk
0:01:31.4]} 22... Bxe4 {[%clk 0:00:32.8]} 23. Qxe4 {[%clk 0:01:32.3]} 23... Qxe4
{[%clk 0:00:23.4]} 24. fxe4 {[%clk 0:01:33.2]} 24... f3 {[%clk 0:00:23.6]} 25.
Rd7 {[%clk 0:01:30.8]} 25... Na5 {[%clk 0:00:16.7]} 26. Nxa5 {[%clk 0:01:11.6]}
26... Rxc5 {[%clk 0:00:16.6]} 27. Nxb7 {[%clk 0:01:11.9]} 27... Rxc3 {[%clk
0:00:16.5]} 28. Nd6 {[%clk 0:01:11.9]} 28... Be3+ {[%clk 0:00:16.5]} 29. Kh1
{[%clk 0:01:08.8]} 29... fxg2+ {[%clk 0:00:17.4]} 30. Kxg2 {[%clk 0:01:07.8]}
30... Rf8 {[%clk 0:00:18.3]} 31. Rf7 {[%clk 0:00:58]} 31... Kg8 {[%clk
0:00:15.3]} 32. Rxf8+ {[%clk 0:00:53.2]} 32... Kxf8 {[%clk 0:00:16.2]} 33. Rf1+
{[%clk 0:00:45.8]} 33... Bf4 {[%clk 0:00:14.5]} 34. Rf2 {[%clk 0:00:43.7]} 34...
g6 {[%clk 0:00:14.9]} 35. Kf1 {[%clk 0:00:39.1]} 35... Ke7 {[%clk 0:00:14.8]}
36. Nb7 {[%clk 0:00:38.5]} 36... Rc4 {[%clk 0:00:14.3]} 37. h3 {[%clk
0:00:21.9]} 37... Kd7 {[%clk 0:00:10.7]} 38. Rf3 {[%clk 0:00:20.4]} 38... Kc7
{[%clk 0:00:10.1]} 39. Rb3 {[%clk 0:00:20.6]} 39... Rxa4 {[%clk 0:00:07.9]} 40.
Nc5 {[%clk 0:00:20.4]} 40... Ra1+ {[%clk 0:00:08.3]} 41. Kg2 {[%clk 0:00:19.9]}
41... a5 {[%clk 0:00:08.5]} 42. Ne6+ {[%clk 0:00:18.6]} 42... Kc6 {[%clk
0:00:08.5]} 43. Rc3+ {[%clk 0:00:18.1]} 43... Kd6 {[%clk 0:00:08.1]} 44. Nf8
{[%clk 0:00:18.2]} 44... a4 {[%clk 0:00:07.3]} 45. Nxh7 {[%clk 0:00:18.5]} 45...
a3 {[%clk 0:00:07.3]} 46. Nf8 {[%clk 0:00:17.6]} 46... a2 {[%clk 0:00:07.2]} 47.
Ra3 {[%clk 0:00:16.9]} 47... Kc5 {[%clk 0:00:07.3]} 48. Nxg6 {[%clk 0:00:15.2]}
48... Kb4 {[%clk 0:00:06.9]} 49. Ra8 {[%clk 0:00:15.3]} 49... Kc3 {[%clk
0:00:06.9]} 50. h4 {[%clk 0:00:14]} 50... Kb2 {[%clk 0:00:06.8]} 51. h5 {[%clk
0:00:14]} 51... Rd1 {[%clk 0:00:04.4]} 52. Rb8+ {[%clk 0:00:05.2]} 52... Kxc2
{[%clk 0:00:03.8]} 53. Ra8 {[%clk 0:00:05.1]} 53... Kb1 {[%clk 0:00:03.9]} 54.
Rb8+ {[%clk 0:00:04.2]} 54... Kc2 {[%clk 0:00:04]} 55. Ra8 {[%clk 0:00:04.5]}
55... Kd3 {[%clk 0:00:04.1]} 56. Rxa2 {[%clk 0:00:03.6]} 56... Kxe4 {[%clk
0:00:02.8]} 57. Re2+ {[%clk 0:00:03.2]} 57... Kf5 {[%clk 0:00:02.5]} 58. Ne7+
{[%clk 0:00:03.6]} 58... Kg4 {[%clk 0:00:01.6]} 59. h6 {[%clk 0:00:02.1]} 59...
Rd7 {[%clk 0:00:02.5]} 60. Ng6 {[%clk 0:00:01.1]} 60... Rh7 {[%clk 0:00:01.7]}
61. Nxe5+ {[%clk 0:00:01.5]} 61... Bxe5 {[%clk 0:00:01.1]} 62. Rxe5 {[%clk
0:00:02.4]} 62... Rxh6 {[%clk 0:00:02]} 63. Re4+ {[%clk 0:00:03.2]} 63... Kg5
{[%clk 0:00:01.9]} 64. Ra4 {[%clk 0:00:04.1]} 64... Rg6 {[%clk 0:00:02.8]} 65.
Ra5+ {[%clk 0:00:04.2]} 65... Kh6+ {[%clk 0:00:03.7]} 66. Kf3 {[%clk 0:00:05.1]}
66... Rg5 {[%clk 0:00:04.6]} 67. Rxg5 {[%clk 0:00:03.9]} 67... Kxg5 {[%clk
0:00:04.3]} 1/2-1/2

[Event "*** Titled Tuesday Blitz"]
[Site "Chess.com"]
[Date "2020.04.14"]
[Round "5"]
[White "ItsCheckM8Mate"]
[Black "WeAintSurePal"]
[Result "1-0"]
[WhiteElo "2151"]
[BlackElo "2313"]
[TimeControl "180+1"]
[EndTime "10:52:37 PDT"]
[Termination "ItsCheckM8Mate won by resignation"]

1. e4 {[%clk 0:03:00.4]} 1... e5 {[%clk 0:02:57.9]} 2. Nf3 {[%clk 0:02:59]} 2...
Nc6 {[%clk 0:02:56.5]} 3. Bb5 {[%clk 0:02:58.6]} 3... a6 {[%clk 0:02:55.4]} 4.
Ba4 {[%clk 0:02:57.4]} 4... Nf6 {[%clk 0:02:49.9]} 5. O-O {[%clk 0:02:57]} 5...
Be7 {[%clk 0:02:49]} 6. Re1 {[%clk 0:02:56.6]} 6... b5 {[%clk 0:02:48.6]} 7. Bb3
{[%clk 0:02:56.9]} 7... d6 {[%clk 0:02:48.8]} 8. c3 {[%clk 0:02:54.4]} 8... O-O
{[%clk 0:02:48.8]} 9. h3 {[%clk 0:02:55]} 9... Nd7 {[%clk 0:02:47.6]} 10. d3
{[%clk 0:02:43.9]} 10... Bb7 {[%clk 0:02:44.8]} 11. Nbd2 {[%clk 0:02:43.7]}
11... h6 {[%clk 0:02:43.2]} 12. Nf1 {[%clk 0:02:43.7]} 12... Re8 {[%clk
0:02:38.7]} 13. Ng3 {[%clk 0:02:42.2]} 13... Nc5 {[%clk 0:02:36.1]} 14. Bd5
{[%clk 0:02:31.2]} 14... Bf6 {[%clk 0:02:22.7]} 15. b4 {[%clk 0:02:25.2]} 15...
Ne6 {[%clk 0:02:18.8]} 16. Be3 {[%clk 0:02:01.2]} 16... Qd7 {[%clk 0:02:15.5]}
17. Nf5 {[%clk 0:01:55]} 17... Ncd8 {[%clk 0:02:04.3]} 18. Bb3 {[%clk
0:01:47.8]} 18... d5 {[%clk 0:01:58.7]} 19. exd5 {[%clk 0:01:12.3]} 19... Bxd5
{[%clk 0:01:53.5]} 20. N3h4 {[%clk 0:01:05.5]} 20... Bxb3 {[%clk 0:01:40]} 21.
axb3 {[%clk 0:01:04.8]} 21... Nc6 {[%clk 0:01:40]} 22. Qg4 {[%clk 0:01:00.8]}
22... Bg5 {[%clk 0:01:33.4]} 23. Nf3 {[%clk 0:00:53.2]} 23... Rad8 {[%clk
0:01:24.1]} 24. h4 {[%clk 0:00:49.6]} 24... Bxe3 {[%clk 0:01:20.3]} 25. Rxe3
{[%clk 0:00:43.8]} 25... h5 {[%clk 0:01:09.5]} 26. Qxh5 {[%clk 0:00:39.3]} 26...
Nf4 {[%clk 0:01:10]} 27. Qg5 {[%clk 0:00:29.3]} 27... f6 {[%clk 0:00:57.2]} 28.
Qg4 {[%clk 0:00:26.5]} 28... g6 {[%clk 0:00:50.3]} 29. Nh6+ {[%clk 0:00:24.2]}
29... Kg7 {[%clk 0:00:50]} 30. Qxd7+ {[%clk 0:00:19.1]} 30... Rxd7 {[%clk
0:00:50.9]} 31. Ng4 {[%clk 0:00:18.9]} 31... Nb8 {[%clk 0:00:31.1]} 32. d4
{[%clk 0:00:16.6]} 32... Rde7 {[%clk 0:00:28]} 33. dxe5 {[%clk 0:00:15.7]} 33...
Nd7 {[%clk 0:00:26.1]} 34. exf6+ {[%clk 0:00:15.1]} 34... Nxf6 {[%clk
0:00:26.7]} 35. Nxf6 {[%clk 0:00:14.3]} 35... Kxf6 {[%clk 0:00:26.6]} 36. Rxa6+
{[%clk 0:00:14]} 36... Kg7 {[%clk 0:00:25.9]} 37. Rxe7+ {[%clk 0:00:13.4]} 37...
Rxe7 {[%clk 0:00:26.8]} 38. g3 {[%clk 0:00:10.8]} 38... Ne2+ {[%clk 0:00:26.2]}
39. Kg2 {[%clk 0:00:09.9]} 39... Nxc3 {[%clk 0:00:26.6]} 40. Rc6 {[%clk
0:00:08.4]} 40... Nd5 {[%clk 0:00:25.9]} 41. Rc5 {[%clk 0:00:08]} 41... Nxb4
{[%clk 0:00:22.5]} 42. Rxb5 {[%clk 0:00:08.3]} 42... Nd3 {[%clk 0:00:20.7]} 43.
Ng5 {[%clk 0:00:07.8]} 43... Re2 {[%clk 0:00:18.9]} 44. Rd5 {[%clk 0:00:07]}
44... Ne1+ {[%clk 0:00:16.6]} 45. Kg1 {[%clk 0:00:06.3]} 45... Re7 {[%clk
0:00:17.5]} 46. Kf1 {[%clk 0:00:05.9]} 46... Nc2 {[%clk 0:00:17.6]} 47. Kg2
{[%clk 0:00:05.8]} 47... Nb4 {[%clk 0:00:17.3]} 48. Rc5 {[%clk 0:00:05.7]} 48...
Nd3 {[%clk 0:00:16]} 49. Rc6 {[%clk 0:00:05.7]} 49... Ne5 {[%clk 0:00:15.6]} 50.
Ne6+ {[%clk 0:00:04.8]} 50... Kf6 {[%clk 0:00:15.1]} 51. Rxc7 {[%clk 0:00:04.1]}
51... Rxe6 {[%clk 0:00:15.3]} 52. f4 {[%clk 0:00:04.3]} 52... Ng4 {[%clk
0:00:15.3]} 53. Kf3 {[%clk 0:00:04.4]} 53... Nh6 {[%clk 0:00:15]} 54. g4 {[%clk
0:00:04.4]} 54... Rb6 {[%clk 0:00:13.2]} 55. g5+ {[%clk 0:00:04.7]} 55... Kf5
{[%clk 0:00:13.7]} 56. Rc5+ {[%clk 0:00:04.7]} 56... Ke6 {[%clk 0:00:13.5]} 57.
Re5+ {[%clk 0:00:05.2]} 57... Kd6 {[%clk 0:00:13.4]} 58. gxh6 {[%clk 0:00:05.8]}
58... Rxb3+ {[%clk 0:00:13.4]} 59. Kg4 {[%clk 0:00:06.7]} 59... Rb7 {[%clk
0:00:12.9]} 60. Kg5 {[%clk 0:00:07]} 60... Rb6 {[%clk 0:00:11.8]} 61. Kxg6
{[%clk 0:00:06.9]} 61... Kd7+ {[%clk 0:00:12.3]} 62. Kg5 {[%clk 0:00:07.1]}
62... Rb8 {[%clk 0:00:11.9]} 63. h7 {[%clk 0:00:07.4]} 63... Rh8 {[%clk
0:00:12.1]} 64. Kh6 {[%clk 0:00:07.8]} 64... Rf8 {[%clk 0:00:12.4]} 65. Kg7
{[%clk 0:00:08.1]} 65... Rxf4 {[%clk 0:00:12.6]} 66. h8=Q {[%clk 0:00:08.3]}
66... Rg4+ {[%clk 0:00:13.5]} 67. Kf6 {[%clk 0:00:08.6]} 67... Rf4+ {[%clk
0:00:13.7]} 68. Rf5 {[%clk 0:00:08.9]} 68... Re4 {[%clk 0:00:13.8]} 69. Qg7+
{[%clk 0:00:08.9]} 69... Kd6 {[%clk 0:00:13.3]} 70. Qf8+ {[%clk 0:00:08.9]}
70... Kc6 {[%clk 0:00:13]} 71. Qa8+ {[%clk 0:00:08.8]} 71... Kd7 {[%clk
0:00:12.4]} 72. Qxe4 {[%clk 0:00:09.7]} 1-0